[Event "22nd Ruzomberok Open 2019"]
[Site "Ruzomberok"]
[Date "2019.07.07"]
[Round "9.2"]
[White "Jablonicky, Martin"]
[Black "Mrvova, Alena"]
[Result "1-0"]
[ECO "B40"]
[WhiteElo "2378"]
[BlackElo "2153"]
[Annotator "NA"]
[PlyCount "101"]
[EventDate "2019.06.29"]
[EventType "swiss"]
[EventCountry "SVK"]
[SourceTitle "playchess.com"]
[Source "ChessBase"]
[SourceQuality "1"]
[TimeControl "40/5400+30:1800+30"]

1. e4 {[%emt 0:05:06]} c5 {[%emt 0:00:00]} 2. Nf3 {[%emt 0:00:11]} e6 {[%emt 0:00:03]} 3. Nc3 {[%emt 0:00:05]} a6 {[%emt 0:00:33]} 4. Be2 {[%emt 0:00:11]} b5 {[%emt 0:02:39]} 5. d4 {[%emt 0:00:05]} cxd4 {[%emt 0:01:24]} 6. Qxd4 {[%emt 0:00:04]} Nc6 {[%emt 0:00:52]} 7. Qe3 {[%emt 0:00:07]} Nge7 {[%emt 0:01:37]} 8. O-O {[%emt 0:00:31]} Ng6 {[%emt 0:02:08]} 9. b3 {[%emt 0:01:16]} Be7 {[%emt 0:02:55]} 10. Bb2 {[%emt 0:01:43]} O-O {[%emt 0:00:29]} 11. Rad1 {[%emt 0:02:45]} Rb8 {[%emt 0:03:17]} 12. a4 {[%emt 0:00:32]} Bf6 {[%emt 0:01:14]} 13. Rd2 {[%emt 0:02:37]} b4 {[%emt 0:04:44]} 14. Nd1 {[%emt 0:00:09]} Be7 {[%emt 0:00:18]} 15. Ba1 {[%emt 0:00:53]} Qc7 {[%emt 0:00:46]} 16. Nb2 {[%emt 0:02:02]} Na5 {[%emt 0:07:24]} 17. Nc4 {[%emt 0:01:21]} Nxc4 {[%emt 0:12:24]} 18. Bxc4 {[%emt 0:04:32]} Bb7 {[%emt 0:00:37]} 19. Qd4 {[%emt 0:17:21]} Bf6 {[%emt 0:03:36]} 20. Qxd7 {[%emt 0:00:16]} Qxd7 {[%emt 0:02:22]} 21. Rxd7 {[%emt 0:00:05]} Bxe4 {[%emt 0:00:34]} 22. Bxa6 {[%emt 0:11:06]} Bxc2 {[%emt 0:00:51]} 23. Bxf6 {[%emt 0:01:09]} gxf6 {[%emt 0:00:28]} 24. Nd4 {[%emt 0:00:09]} Be4 {[%emt 0:00:29]} 25. Rc1 {[%emt 0:06:22]} Ne5 {[%emt 0:07:16]} 26. Rd6 {[%emt 0:12:24]} Ng6 {[%emt 0:07:09]} 27. f3 {[%emt 0:03:46]} Bd5 {[%emt 0:01:14]} 28. Nc6 {[%emt 0:00:25]} Ra8 {[%emt 0:03:00]} 29. Bb7 {[%emt 0:01:54]} Rae8 {[%emt 0:13:31]} 30. a5 {[%emt 0:00:44]} Nf4 {[%emt 0:00:22]} 31. Ra1 {[%emt 0:00:29]} Nd3 {[%emt 0:01:05]} 32. a6 {[%emt 0:01:38]} Nc5 {[%emt 0:00:51]} 33. Ra5 {[%emt 0:01:08]} Nxb7 {[%emt 0:05:23]} 34. axb7 {[%emt 0:00:10]} Bxc6 {[%emt 0:00:03]} 35. Rxc6 {[%emt 0:00:06]} Rb8 {[%emt 0:00:02]} 36. Rb5 {[%emt 0:00:16]} Rfd8 {[%emt 0:00:14]} 37. Rxb4 {[%emt 0:00:18]} Kf8 {[%emt 0:01:39]} 38. Kf2 {[%emt 0:00:48]} f5 {[%emt 0:01:01]} 39. Rc7 {[%emt 0:00:36]} Kg7 {[%emt 0:00:50]} 40. g4 {[%emt 0:00:06]} Kf6 {[%emt 0:02:51]} 41. gxf5 {[%emt 0:30:04]} exf5 {[%emt 0:30:09]} 42. Kg3 {[%emt 0:00:42]} Ke6 {[%emt 0:03:37]} 43. Rb6+ {[%emt 0:01:39]} Ke5 {[%emt 0:00:47]} 44. Re7+ {[%emt 0:00:10]} Kd4 {[%emt 0:01:23]} 45. Rxf7 {[%emt 0:00:31]} Kc5 {[%emt 0:04:05]} 46. Rh6 {[%emt 0:01:07]} Kb4 {[%emt 0:01:48]} 47. Rhxh7 {[%emt 0:00:41]} Rd5 {[%emt 0:00:30]} 48. h4 {[%emt 0:00:45]} Kxb3 {[%emt 0:00:09]} 49. h5 {[%emt 0:00:23]} Rb5 {[%emt 0:01:22]} 50. h6 {[%emt 0:00:55]} Kc4 {[%emt 0:00:09]} 51. Rhg7 {[%emt 0:00:32]} 1-0

[Event "22nd Ruzomberok Open 2019"]
[Site "Ruzomberok"]
[Date "2019.07.07"]
[Round "9.3"]
[White "Farkas, Gabor"]
[Black "Borsos, Bogdan"]
[Result "1/2-1/2"]
[ECO "C44"]
[WhiteElo "2353"]
[BlackElo "2211"]
[Annotator "NA"]
[PlyCount "78"]
[EventDate "2019.06.29"]
[EventType "swiss"]
[EventCountry "SVK"]
[SourceTitle "playchess.com"]
[Source "ChessBase"]
[SourceQuality "1"]
[TimeControl "40/5400+30:1800+30"]

1. e4 {[%emt 0:00:00]} e5 {[%emt 0:00:00]} 2. Nf3 {[%emt 0:00:00]} Nc6 {[%emt 0:00:00]} 3. d4 {[%emt 0:00:00]} exd4 {[%emt 0:00:14]} 4. Nxd4 {[%emt 0:00:00]} Bb4+ {[%emt 0:03:02]} 5. c3 {[%emt 0:00:00]} Ba5 {[%emt 0:00:05]} 6. Nxc6 bxc6 {[%emt 0:01:15]} 7. Bc4 {[%emt 0:09:29]} Bb6 {[%emt 0:05:22]} 8. O-O {[%emt 0:04:41]} Ne7 {[%emt 0:07:00]} 9. Bg5 {[%emt 0:03:43]} h6 {[%emt 0:22:35]} 10. Bh4 {[%emt 0:01:16]} O-O {[%emt 0:10:00]} 11. Kh1 {[%emt 0:00:54]} Qe8 {[%emt 0:04:19]} 12. Nd2 {[%emt 0:10:29]} Kh8 {[%emt 0:07:37]} 13. f4 {[%emt 0:02:10]} f6 {[%emt 0:01:09]} 14. f5 {[%emt 0:04:49]} d5 {[%emt 0:02:08]} 15. Bd3 {[%emt 0:00:12]} dxe4 {[%emt 0:00:58]} 16. Bxe4 {[%emt 0:02:19]} Ba6 {[%emt 0:01:15]} 17. c4 {[%emt 0:01:18]} Rd8 {[%emt 0:01:02]} 18. Qc2 {[%emt 0:01:27]} c5 {[%emt 0:07:03]} 19. Nf3 {[%emt 0:05:08]} Qf7 {[%emt 0:00:34]} 20. b3 {[%emt 0:04:11]} Rd7 {[%emt 0:04:09]} 21. Rad1 {[%emt 0:06:57]} Bc8 {[%emt 0:00:40]} 22. Rxd7 {[%emt 0:02:01]} Bxd7 {[%emt 0:00:06]} 23. Bg3 {[%emt 0:02:52]} Nc6 {[%emt 0:09:32]} 24. Rd1 {[%emt 0:02:12]} Re8 {[%emt 0:02:36]} 25. Bxc6 {[%emt 0:04:46]} Bxc6 {[%emt 0:00:13]} 26. Nh4 {[%emt 0:00:29]} Qh5 {[%emt 0:01:17]} 27. Re1 {[%emt 0:05:10]} Kh7 {[%emt 0:04:02]} 28. Rxe8 {[%emt 0:01:38]} Qxe8 {[%emt 0:00:24]} 29. h3 {[%emt 0:01:27]} Ba5 {[%emt 0:01:59]} 30. Qf2 {[%emt 0:00:39]} Qe4 {[%emt 0:00:44]} 31. Kh2 {[%emt 0:04:01]} Bc3 {[%emt 0:02:02]} 32. Qf3 {[%emt 0:04:43]} Bd4 {[%emt 0:00:46]} 33. Qxe4 {[%emt 0:14:11]} Bxe4 {[%emt 0:00:05]} 34. Bxc7 {[%emt 0:00:08]} Bb1 {[%emt 0:00:14]} 35. a3 {[%emt 0:01:09]} Ba2 {[%emt 0:00:29]} 36. b4 {[%emt 0:00:33]} Bxc4 {[%emt 0:01:04]} 37. Bd6 {[%emt 0:00:53]} cxb4 {[%emt 0:00:48]} 38. axb4 {[%emt 0:00:40]} Bd3 {[%emt 0:00:32]} 39. g4 {[%emt 0:00:31]} Bc3 {[%emt 0:00:28]} 1/2-1/2

[Event "22nd Ruzomberok Open 2019"]
[Site "Ruzomberok"]
[Date "2019.07.07"]
[Round "9.5"]
[White "Bednar, Jan"]
[Black "Jakab, Bela"]
[Result "0-1"]
[ECO "D15"]
[WhiteElo "2084"]
[BlackElo "2278"]
[Annotator "NA"]
[PlyCount "88"]
[EventDate "2019.06.29"]
[EventType "swiss"]
[EventCountry "SVK"]
[SourceTitle "playchess.com"]
[Source "ChessBase"]
[SourceQuality "1"]
[TimeControl "40/5400+30:1800+30"]

1. d4 {[%emt 0:00:00]} d5 {[%emt 0:07:42]} 2. c4 {[%emt 0:00:00]} c6 {[%emt 0:00:04]} 3. Nf3 {[%emt 0:00:14]} Nf6 {[%emt 0:00:05]} 4. Nc3 {[%emt 0:00:06]} a6 {[%emt 0:00:03]} 5. e3 {[%emt 0:01:41]} b5 {[%emt 0:00:10]} 6. c5 {[%emt 0:02:14]} Bg4 {[%emt 0:00:44]} 7. Be2 {[%emt 0:00:28]} Nbd7 {[%emt 0:00:50]} 8. b4 {[%emt 0:01:35]} g6 {[%emt 0:04:57]} 9. Bb2 {[%emt 0:03:20]} Bg7 {[%emt 0:00:09]} 10. Ne5 {[%emt 0:07:45]} Bxe2 {[%emt 0:03:37]} 11. Qxe2 {[%emt 0:00:31]} Nxe5 {[%emt 0:01:49]} 12. dxe5 {[%emt 0:00:04]} Nd7 {[%emt 0:12:37]} 13. f4 {[%emt 0:01:45]} O-O {[%emt 0:01:19]} 14. O-O {[%emt 0:00:11]} e6 {[%emt 0:06:51]} 15. Qg4 {[%emt 0:11:26]} a5 {[%emt 0:02:22]} 16. a3 {[%emt 0:01:02]} Qe7 {[%emt 0:00:27]} 17. Ne2 {[%emt 0:00:15]} Rae8 {[%emt 0:06:49]} 18. Nd4 {[%emt 0:08:12]} Nb8 {[%emt 0:00:23]} 19. a4 {[%emt 0:09:04]} bxa4 {[%emt 0:08:53]} 20. bxa5 {[%emt 0:04:28]} Qxc5 {[%emt 0:03:02]} 21. Rxa4 {[%emt 0:05:50]} Qa7 {[%emt 0:00:33]} 22. Rc1 {[%emt 0:12:05]} c5 {[%emt 0:01:43]} 23. Nb5 {[%emt 0:00:28]} Qd7 {[%emt 0:00:29]} 24. Qe2 {[%emt 0:01:11]} Na6 {[%emt 0:04:08]} 25. Raa1 {[%emt 0:06:31]} Ra8 {[%emt 0:02:12]} 26. Ba3 {[%emt 0:04:47]} Rfb8 {[%emt 0:00:45]} 27. Nd6 {[%emt 0:02:35]} c4 {[%emt 0:01:29]} 28. h4 {[%emt 0:03:36]} Rb3 {[%emt 0:03:27]} 29. h5 {[%emt 0:01:54]} Qa7 {[%emt 0:01:13]} 30. Re1 {[%emt 0:00:19]} Nc5 {[%emt 0:01:30]} 31. Nxc4 {[%emt 0:00:50]} dxc4 {[%emt 0:05:54]} 32. Qxc4 {[%emt 0:00:14]} Rxa3 {[%emt 0:04:24]} 33. Rxa3 {[%emt 0:00:11]} Bf8 {[%emt 0:00:10]} 34. hxg6 {[%emt 0:00:40]} hxg6 {[%emt 0:00:12]} 35. Ra2 {[%emt 0:00:50]} Na6 {[%emt 0:01:21]} 36. Kh2 {[%emt 0:00:58]} Nb4 {[%emt 0:01:28]} 37. Rae2 {[%emt 0:04:43]} Qxa5 {[%emt 0:00:28]} 38. g4 {[%emt 0:00:16]} Qd8 {[%emt 0:01:12]} 39. Kg3 {[%emt 0:00:33]} Ra3 {[%emt 0:01:30]} 40. g5 {[%emt 0:04:07]} Qb6 {[%emt 0:02:28]} 41. Qe4 {[%emt 0:14:51]} Nd5 {[%emt 0:01:08]} 42. Rh2 {[%emt 0:14:33]} Nxe3 {[%emt 0:01:17]} 43. Rxe3 {[%emt 0:01:22]} Rxe3+ {[%emt 0:00:21]} 44. Kg4 {[%emt 0:00:15]} Rxe4 {[%emt 0:00:22]} 0-1

[Event "22nd Ruzomberok Open 2019"]
[Site "Ruzomberok"]
[Date "2019.07.07"]
[Round "9.6"]
[White "Motycakova, Monika"]
[Black "Viczencz, Peter"]
[Result "0-1"]
[ECO "B43"]
[WhiteElo "2129"]
[BlackElo "2014"]
[Annotator "NA"]
[PlyCount "150"]
[EventDate "2019.06.29"]
[EventType "swiss"]
[EventCountry "SVK"]
[SourceTitle "playchess.com"]
[Source "ChessBase"]
[SourceQuality "1"]
[TimeControl "40/5400+30:1800+30"]

1. e4 {[%emt 0:01:37]} c5 {[%emt 0:00:00]} 2. Nf3 {[%emt 0:00:07]} e6 {[%emt 0:00:00]} 3. d4 {[%emt 0:00:23]} cxd4 {[%emt 0:00:03]} 4. Nxd4 {[%emt 0:00:04]} a6 {[%emt 0:00:06]} 5. Nc3 {[%emt 0:00:40]} Qc7 {[%emt 0:00:09]} 6. Be2 {[%emt 0:00:17]} Nf6 {[%emt 0:00:39]} 7. O-O {[%emt 0:00:27]} b5 {[%emt 0:00:28]} 8. Re1 {[%emt 0:14:43]} Bb7 {[%emt 0:02:44]} 9. e5 {[%emt 0:11:36]} Qxe5 {[%emt 0:10:14]} 10. Bxb5 {[%emt 0:05:41]} Qc7 {[%emt 0:01:38]} 11. Bd3 {[%emt 0:22:58]} Be7 {[%emt 0:10:12]} 12. Bg5 {[%emt 0:01:29]} d5 {[%emt 0:01:21]} 13. Qf3 {[%emt 0:08:38]} O-O {[%emt 0:02:44]} 14. Qh3 {[%emt 0:01:44]} g6 {[%emt 0:11:14]} 15. Qh4 {[%emt 0:13:02]} Nbd7 {[%emt 0:02:20]} 16. Re3 {[%emt 0:03:31]} e5 {[%emt 0:06:03]} 17. Nf5 {[%emt 0:00:17]} Bd8 {[%emt 0:00:09]} 18. Qh6 {[%emt 0:06:56]} Nh5 {[%emt 0:02:42]} 19. Rh3 {[%emt 0:03:48]} Bxg5 {[%emt 0:02:41]} 20. Qxg5 {[%emt 0:00:15]} f6 {[%emt 0:05:48]} 21. Qh6 {[%emt 0:00:07]} Nc5 {[%emt 0:00:37]} 22. Bf1 {[%emt 0:02:03]} Ne6 {[%emt 0:08:38]} 23. Nh4 {[%emt 0:00:36]} Nef4 {[%emt 0:00:59]} 24. Rg3 {[%emt 0:00:11]} Nxg3 {[%emt 0:00:43]} 25. hxg3 {[%emt 0:00:03]} Ne6 {[%emt 0:00:18]} 26. Qd2 {[%emt 0:01:09]} Rad8 {[%emt 0:01:14]} 27. Re1 {[%emt 0:00:26]} Ng5 {[%emt 0:02:59]} 28. Na4 {[%emt 0:00:34]} Ne4 {[%emt 0:01:31]} 29. Qd1 {[%emt 0:00:12]} Bc6 {[%emt 0:02:22]} 30. Nc3 {[%emt 0:00:44]} Nxc3 {[%emt 0:00:15]} 31. bxc3 {[%emt 0:00:04]} Bb5 {[%emt 0:00:13]} 32. Bd3 {[%emt 0:01:02]} Bxd3 {[%emt 0:00:10]} 33. Qxd3 {[%emt 0:00:09]} Qc4 {[%emt 0:00:40]} 34. Qe3 {[%emt 0:00:30]} Kg7 {[%emt 0:00:44]} 35. Rb1 {[%emt 0:00:24]} Rf7 {[%emt 0:00:16]} 36. Rb3 {[%emt 0:00:36]} d4 {[%emt 0:04:12]} 37. Qe4 {[%emt 0:00:04]} Qd5 {[%emt 0:00:28]} 38. Qg4 {[%emt 0:00:33]} Qd7 {[%emt 0:00:44]} 39. Qe4 {[%emt 0:00:23]} dxc3 {[%emt 0:00:18]} 40. Rxc3 {[%emt 0:00:22]} Qd1+ {[%emt 0:00:17]} 41. Kh2 {[%emt 0:30:05]} Qh5 {[%emt 0:30:56]} 42. Qf3 {[%emt 0:00:00]} Qxf3 {[%emt 0:00:00]} 43. gxf3 {[%emt 0:00:00]} Rd2 {[%emt 0:00:00]} 44. Kg1 {[%emt 0:00:00]} Rb7 {[%emt 0:00:00]} 45. f4 {[%emt 0:00:00]} e4 {[%emt 0:00:00]} 46. g4 {[%emt 0:00:00]} Rb1+ {[%emt 0:00:00]} 47. Kg2 {[%emt 0:00:00]} Rb2 {[%emt 0:00:00]} 48. Rc7+ {[%emt 0:00:00]} Kh6 {[%emt 0:00:00]} 49. Rc6 {[%emt 0:00:00]} Rbxc2 {[%emt 0:00:00]} 50. Rxf6 {[%emt 0:00:00]} Rxf2+ {[%emt 0:00:00]} 51. Kg3 {[%emt 0:00:00]} Kg7 {[%emt 0:00:00]} 52. Rxa6 {[%emt 0:00:00]} Rxa2 {[%emt 0:00:00]} 53. Re6 {[%emt 0:00:00]} Rfb2 {[%emt 0:00:00]} 54. g5 {[%emt 0:00:00]} Rb3+ {[%emt 0:00:00]} 55. Kg4 {[%emt 0:00:00]} e3 {[%emt 0:00:00]} 56. Nf3 {[%emt 0:04:23]} e2 {[%emt 0:00:00]} 57. Nd4 {[%emt 0:01:11]} Rbb2 {[%emt 0:00:00]} 58. Kf3 {[%emt 0:01:08]} Ra3+ {[%emt 0:00:00]} 59. Kg4 {[%emt 0:00:19]} Kf7 {[%emt 0:00:00]} 60. Rxe2 {[%emt 0:01:17]} Rxe2 {[%emt 0:00:00]} 61. Nxe2 {[%emt 0:00:03]} Ke6 {[%emt 0:00:00]} 62. Nd4+ {[%emt 0:03:02]} Kd5 {[%emt 0:00:00]} 63. Nf3 {[%emt 0:00:41]} Ke4 {[%emt 0:00:00]} 64. Nd2+ {[%emt 0:00:37]} Kd3 {[%emt 0:00:00]} 65. Nf1 {[%emt 0:00:38]} Ke2 {[%emt 0:00:00]} 66. Ng3+ {[%emt 0:00:20]} Ke3 {[%emt 0:00:00]} 67. Nf1+ {[%emt 0:00:48]} Kf2 {[%emt 0:00:00]} 68. Nd2 {[%emt 0:00:24]} Ra4 {[%emt 0:00:00]} 69. Nf3 {[%emt 0:00:32]} Ke3 {[%emt 0:00:00]} 70. Kg3 {[%emt 0:00:35]} Rxf4 {[%emt 0:00:00]} 71. Nh2 {[%emt 0:00:16]} Ke4 {[%emt 0:00:00]} 72. Ng4 {[%emt 0:00:25]} Kf5 {[%emt 0:00:00]} 73. Nf6 {[%emt 0:00:30]} Kxg5 {[%emt 0:00:00]} 74. Nxh7+ {[%emt 0:00:06]} Kf5 {[%emt 0:00:00]} 75. Nf8 {[%emt 0:00:15]} Rd4 {[%emt 0:00:00]} 0-1

[Event "22nd Ruzomberok Open 2019"]
[Site "Ruzomberok"]
[Date "2019.07.07"]
[Round "9.7"]
[White "Karas, Marek"]
[Black "Zahradnik, Vladimir"]
[Result "1-0"]
[ECO "D30"]
[WhiteElo "2282"]
[BlackElo "1862"]
[Annotator "NA"]
[PlyCount "85"]
[EventDate "2019.06.29"]
[EventType "swiss"]
[EventCountry "SVK"]
[SourceTitle "playchess.com"]
[Source "ChessBase"]
[SourceQuality "1"]
[TimeControl "40/5400+30:1800+30"]

1. d4 {[%emt 0:05:00]} d5 {[%emt 0:00:00]} 2. c4 {[%emt 0:00:07]} e6 {[%emt 0:00:08]} 3. Nf3 {[%emt 0:00:20]} c6 {[%emt 0:01:25]} 4. g3 {[%emt 0:00:27]} f5 {[%emt 0:00:15]} 5. Bg2 {[%emt 0:00:09]} Nf6 {[%emt 0:00:06]} 6. O-O {[%emt 0:00:09]} Bd6 {[%emt 0:00:09]} 7. b3 {[%emt 0:00:08]} O-O {[%emt 0:00:12]} 8. Ba3 {[%emt 0:00:22]} Bxa3 {[%emt 0:01:06]} 9. Nxa3 {[%emt 0:00:02]} Qe7 {[%emt 0:00:13]} 10. Nc2 {[%emt 0:00:08]} Nbd7 {[%emt 0:03:24]} 11. Nce1 {[%emt 0:00:58]} dxc4 {[%emt 0:01:26]} 12. bxc4 {[%emt 0:00:17]} e5 {[%emt 0:00:25]} 13. e3 {[%emt 0:04:17]} e4 {[%emt 0:01:09]} 14. Nd2 {[%emt 0:00:12]} c5 {[%emt 0:07:48]} 15. Nb3 {[%emt 0:01:28]} b6 {[%emt 0:00:11]} 16. f3 {[%emt 0:09:14]} Bb7 {[%emt 0:03:35]} 17. fxe4 {[%emt 0:05:34]} Bxe4 {[%emt 0:00:16]} 18. Bxe4 {[%emt 0:01:04]} Nxe4 {[%emt 0:01:51]} 19. Ng2 {[%emt 0:00:59]} g6 {[%emt 0:02:36]} 20. Qd3 {[%emt 0:01:58]} Rad8 {[%emt 0:00:26]} 21. Rad1 {[%emt 0:02:24]} Ne5 {[%emt 0:01:17]} 22. Qc2 {[%emt 0:00:56]} Ng4 {[%emt 0:00:21]} 23. Rde1 {[%emt 0:02:02]} Rd7 {[%emt 0:04:03]} 24. Nf4 {[%emt 0:00:51]} Re8 {[%emt 0:01:23]} 25. Qg2 {[%emt 0:06:30]} Nef6 {[%emt 0:04:38]} 26. dxc5 {[%emt 0:02:31]} bxc5 {[%emt 0:04:17]} 27. Qc6 {[%emt 0:01:43]} Ne4 {[%emt 0:01:10]} 28. Nxg6 {[%emt 0:11:04]} hxg6 {[%emt 0:18:21]} 29. Qxg6+ {[%emt 0:00:16]} Kf8 {[%emt 0:00:14]} 30. Qxg4 {[%emt 0:00:40]} Qg7 {[%emt 0:02:35]} 31. Qxf5+ {[%emt 0:00:56]} Rf7 {[%emt 0:00:11]} 32. Qxf7+ {[%emt 0:00:15]} Qxf7 {[%emt 0:00:07]} 33. Rxf7+ {[%emt 0:00:07]} Kxf7 {[%emt 0:00:05]} 34. Rd1 Nc3 {[%emt 0:02:35]} 35. Rd7+ {[%emt 0:01:27]} Kf6 {[%emt 0:00:07]} 36. Nxc5 {[%emt 0:00:58]} Rxe3 {[%emt 0:00:26]} 37. Rxa7 {[%emt 0:00:40]} Re2 {[%emt 0:00:40]} 38. Ra3 {[%emt 0:00:32]} Nxa2 {[%emt 0:00:35]} 39. Rf3+ {[%emt 0:00:09]} Kg5 {[%emt 0:00:15]} 40. Rf2 {[%emt 0:00:25]} Re1+ {[%emt 0:00:11]} 41. Kg2 {[%emt 0:30:12]} Nb4 {[%emt 0:30:51]} 42. h4+ {[%emt 0:00:12]} Kg4 {[%emt 0:00:44]} 43. Nd7 {[%emt 0:00:21]} 1-0

[Event "22nd Ruzomberok Open 2019"]
[Site "Ruzomberok"]
[Date "2019.07.07"]
[Round "9.8"]
[White "Bartek, Ladislav"]
[Black "Sarkozy, Ladislav"]
[Result "0-1"]
[ECO "B78"]
[WhiteElo "2042"]
[BlackElo "2227"]
[Annotator "NA"]
[PlyCount "53"]
[EventDate "2019.06.29"]
[EventType "swiss"]
[EventCountry "SVK"]
[SourceTitle "playchess.com"]
[Source "ChessBase"]
[SourceQuality "1"]
[TimeControl "40/5400+30:1800+30"]

1. e4 {[%emt 0:00:00]} c5 {[%emt 0:01:27]} 2. Nf3 {[%emt 0:00:00]} d6 {[%emt 0:00:15]} 3. d4 {[%emt 0:00:00]} cxd4 {[%emt 0:00:07]} 4. Nxd4 {[%emt 0:00:00]} Nf6 {[%emt 0:00:07]} 5. Nc3 {[%emt 0:00:00]} g6 {[%emt 0:00:07]} 6. Be3 {[%emt 0:00:08]} Bg7 {[%emt 0:00:08]} 7. f3 {[%emt 0:00:09]} Nc6 {[%emt 0:00:14]} 8. Bc4 {[%emt 0:00:46]} O-O {[%emt 0:00:14]} 9. Qd2 {[%emt 0:00:07]} Bd7 {[%emt 0:00:11]} 10. O-O-O {[%emt 0:00:11]} Rc8 {[%emt 0:00:19]} 11. Bb3 {[%emt 0:00:07]} Ne5 {[%emt 0:00:15]} 12. Kb1 {[%emt 0:00:08]} a6 {[%emt 0:00:05]} 13. h4 {[%emt 0:00:08]} h5 {[%emt 0:00:14]} 14. Rdg1 {[%emt 0:00:05]} Rc5 {[%emt 0:00:49]} 15. g4 {[%emt 0:00:13]} hxg4 {[%emt 0:00:33]} 16. h5 {[%emt 0:00:08]} Nxh5 {[%emt 0:00:11]} 17. Bh6 {[%emt 0:01:33]} Kh7 {[%emt 0:01:38]} 18. Bxg7 {[%emt 0:00:48]} Kxg7 {[%emt 0:00:02]} 19. Nf5+ {[%emt 0:03:09]} Bxf5 {[%emt 0:01:23]} 20. exf5 {[%emt 0:00:28]} Nxf3 {[%emt 0:00:14]} 21. Qc1 {[%emt 0:00:50]} Nxg1 {[%emt 0:02:02]} 22. Rxh5 {[%emt 0:00:10]} Rh8 {[%emt 0:00:33]} 23. Rxh8 {[%emt 0:01:22]} Qxh8 {[%emt 0:00:09]} 24. Qxg1 {[%emt 0:00:17]} gxf5 {[%emt 0:01:29]} 25. a3 {[%emt 0:02:18]} Re5 {[%emt 0:07:19]} 26. Nd5 {[%emt 0:02:48]} Qh4 {[%emt 0:00:36]} 27. Nc3 0-1

[Event "22nd Ruzomberok Open 2019"]
[Site "Ruzomberok"]
[Date "2019.07.07"]
[Round "9.9"]
[White "Hros, Roman"]
[Black "Baleja, Marian"]
[Result "1-0"]
[ECO "B20"]
[WhiteElo "2195"]
[BlackElo "1951"]
[Annotator "NA"]
[PlyCount "99"]
[EventDate "2019.06.29"]
[EventType "swiss"]
[EventCountry "SVK"]
[SourceTitle "playchess.com"]
[Source "ChessBase"]
[SourceQuality "1"]
[TimeControl "40/5400+30:1800+30"]

1. e4 {[%emt 0:00:00]} c5 {[%emt 0:00:23]} 2. Be2 {[%emt 0:00:00]} Nc6 {[%emt 0:02:00]} 3. f4 {[%emt 0:00:00]} g6 {[%emt 0:02:56]} 4. Nf3 {[%emt 0:00:12]} Bg7 {[%emt 0:00:43]} 5. d3 {[%emt 0:00:22]} d5 {[%emt 0:04:01]} 6. c3 {[%emt 0:04:41]} dxe4 {[%emt 0:13:24]} 7. dxe4 {[%emt 0:00:34]} Qc7 {[%emt 0:02:35]} 8. O-O {[%emt 0:03:52]} Bg4 {[%emt 0:04:24]} 9. Na3 {[%emt 0:23:45]} Rd8 {[%emt 0:04:38]} 10. Qe1 {[%emt 0:00:38]} Nf6 {[%emt 0:05:57]} 11. Qh4 {[%emt 0:06:44]} Bxf3 {[%emt 0:07:04]} 12. Bxf3 {[%emt 0:02:09]} O-O {[%emt 0:01:35]} 13. Nc4 {[%emt 0:02:08]} b5 {[%emt 0:02:01]} 14. Ne3 {[%emt 0:00:42]} e6 {[%emt 0:05:44]} 15. g4 {[%emt 0:16:01]} Ne8 {[%emt 0:06:35]} 16. f5 {[%emt 0:06:11]} exf5 {[%emt 0:06:34]} 17. Nd5 {[%emt 0:03:55]} Rxd5 {[%emt 0:03:34]} 18. exd5 {[%emt 0:00:39]} fxg4 {[%emt 0:02:35]} 19. Bxg4 {[%emt 0:02:09]} Ne5 {[%emt 0:03:04]} 20. Bf4 {[%emt 0:02:41]} c4 {[%emt 0:00:30]} 21. Bh3 {[%emt 0:12:22]} Qc5+ {[%emt 0:02:58]} 22. Kh1 {[%emt 0:00:15]} Qxd5+ {[%emt 0:01:53]} 23. Bg2 {[%emt 0:00:02]} Qc5 {[%emt 0:03:10]} 24. Rae1 {[%emt 0:01:19]} Nd3 25. Be3 {[%emt 0:01:17]} Qc7 {[%emt 0:04:40]} 26. Re2 {[%emt 0:00:11]} Nd6 {[%emt 0:00:46]} 27. Bd4 {[%emt 0:00:54]} Nf5 {[%emt 0:02:41]} 28. Rxf5 {[%emt 0:01:20]} gxf5 {[%emt 0:01:10]} 29. Bxg7 {[%emt 0:04:47]} Kxg7 {[%emt 0:00:15]} 30. Qg5+ {[%emt 0:00:14]} Kh8 {[%emt 0:00:02]} 31. Qf6+ {[%emt 0:00:10]} Kg8 {[%emt 0:00:04]} 32. Bd5 {[%emt 0:01:50]} Nf4 {[%emt 0:01:27]} 33. Re7 {[%emt 0:00:23]} Nxd5 {[%emt 0:04:01]} 34. Qg5+ {[%emt 0:00:14]} Kh8 {[%emt 0:00:01]} 35. Rxc7 {[%emt 0:00:09]} Nxc7 {[%emt 0:00:14]} 36. Qxf5 {[%emt 0:00:21]} Ne6 {[%emt 0:02:50]} 37. Qxb5 {[%emt 0:00:06]} Rc8 {[%emt 0:00:47]} 38. b3 {[%emt 0:00:58]} Rc7 {[%emt 0:00:37]} 39. b4 {[%emt 0:01:38]} Kg7 {[%emt 0:00:13]} 40. a4 {[%emt 0:00:05]} Kg6 {[%emt 0:00:20]} 41. a5 {[%emt 0:30:15]} f5 {[%emt 0:30:37]} 42. Qe5 {[%emt 0:00:54]} Re7 {[%emt 0:00:00]} 43. b5 {[%emt 0:00:00]} f4 {[%emt 0:00:00]} 44. b6 {[%emt 0:00:00]} axb6 {[%emt 0:00:00]} 45. axb6 {[%emt 0:00:00]} Kf7 {[%emt 0:00:00]} 46. Qd5 {[%emt 0:00:00]} Kf6 {[%emt 0:00:00]} 47. b7 {[%emt 0:00:00]} Re8 {[%emt 0:00:00]} 48. Qd6 {[%emt 0:00:00]} f3 {[%emt 0:00:00]} 49. b8=Q {[%emt 0:00:00]} f2 {[%emt 0:00:00]} 50. Qe5+ {[%emt 0:00:00]} 1-0

[Event "22nd Ruzomberok Open 2019"]
[Site "Ruzomberok"]
[Date "2019.07.07"]
[Round "9.10"]
[White "Koloditsova, Renata"]
[Black "Hrnciar, Roman"]
[Result "1-0"]
[ECO "A84"]
[WhiteElo "1903"]
[BlackElo "2096"]
[Annotator "NA"]
[PlyCount "45"]
[EventDate "2019.06.29"]
[EventType "swiss"]
[EventCountry "SVK"]
[SourceTitle "playchess.com"]
[Source "ChessBase"]
[SourceQuality "1"]
[TimeControl "40/5400+30:1800+30"]

1. d4 {[%emt 0:00:00]} f5 {[%emt 0:00:00]} 2. c4 {[%emt 0:00:00]} e6 {[%emt 0:00:00]} 3. Nc3 {[%emt 0:00:13]} Nf6 {[%emt 0:00:01]} 4. Nf3 {[%emt 0:00:20]} Be7 {[%emt 0:00:12]} 5. g3 {[%emt 0:00:40]} O-O {[%emt 0:00:29]} 6. Bg2 {[%emt 0:00:25]} c6 {[%emt 0:01:24]} 7. c5 {[%emt 0:06:10]} b6 {[%emt 0:01:57]} 8. b4 {[%emt 0:01:35]} a5 {[%emt 0:00:30]} 9. O-O {[%emt 0:07:33]} axb4 {[%emt 0:01:58]} 10. Na4 {[%emt 0:00:30]} bxc5 {[%emt 0:00:55]} 11. dxc5 {[%emt 0:07:57]} Qa5 {[%emt 0:05:28]} 12. Nb6 {[%emt 0:02:09]} Ra6 {[%emt 0:02:54]} 13. Bf4 {[%emt 0:14:58]} Bxc5 {[%emt 0:03:35]} 14. Nc4 {[%emt 0:01:13]} Qb5 {[%emt 0:00:10]} 15. Nd6 {[%emt 0:00:44]} Bxd6 {[%emt 0:04:09]} 16. Bxd6 {[%emt 0:01:25]} Re8 {[%emt 0:01:39]} 17. Ne5 {[%emt 0:00:51]} Nd5 {[%emt 0:04:34]} 18. e4 {[%emt 0:01:11]} Nc3 {[%emt 0:00:14]} 19. Qh5 {[%emt 0:00:36]} Rd8 {[%emt 0:05:59]} 20. Qf7+ {[%emt 0:02:54]} Kh8 {[%emt 0:01:36]} 21. Qe7 {[%emt 0:00:42]} Qb6 {[%emt 0:00:22]} 22. Nf7+ {[%emt 0:00:22]} Kg8 {[%emt 0:00:11]} 23. Nxd8 {[%emt 0:00:11]} 1-0